fUST/lending_fUST_20260114
["ID","MTS","AMOUNT","RATE_DAILY","PERIOD"]
[401907044,1768399847491,-3392.75982988,0.00017108,2]
[401907045,1768399847501,-4000.0,0.00017108,2]
[401907046,1768399847510,-4000.0,0.00017108,2]
[401907047,1768399847520,-4000.0,0.00017108,2]
[401907048,1768399847529,-1041.66666667,0.00017176,2]
[401907049,1768399847538,-217.15233878,0.00017216,2]
[401907050,1768399847548,-595.37131296,0.00017216,2]
[401907051,1768399847558,-2876.18991768,0.00017216,2]
[401907052,1768399847567,-160.0,0.00017251,2]
[401907053,1768399847577,-2400.0,0.0001726,2]
[401907054,1768399847587,-1185.0,0.00017271,2]
[401907055,1768399847596,-1036.15406492,0.0001733,2]
[401907056,1768399847605,-168.26957802,0.00017391,2]
[401907057,1768399847615,-5000.0,0.00017412,2]
[401907058,1768399847624,-168.28,0.00017465,2]
[401907059,1768399847635,-2400.0,0.00017508,2]
[401907060,1768399847644,-174.48080933,0.00017534,2]
[401907061,1768399847653,-400.0,0.00017534,2]
[401907062,1768399847663,-4000.0,0.00017534,2]
[401907063,1768399847672,-4000.0,0.00017534,2]
[401907064,1768399847681,-4000.0,0.00017534,2]
[401907065,1768399847690,-1089.56424793,0.00017606,11]
[401907066,1768399847699,-151.0,0.00017656,2]
[401907067,1768399847708,-4500.0,0.00017656,2]
[401907068,1768399847717,-3199.34641428,0.00017656,2]
[401907069,1768399847726,-4500.0,0.00017656,2]
[401907070,1768399847736,-4500.0,0.00017656,2]
[401907071,1768399847745,-225.18697532,0.00017764,2]
[401907072,1768399847755,-617.40005154,0.00017764,2]
[401907073,1768399847764,-400.30202268,0.00017842,2]
[401907074,1768399847773,-2258.0,0.00017985,2]
[401907075,1768399847782,-2700.0,0.00018056,2]
[401907076,1768399847792,-4500.0,0.00018082,2]
[401907077,1768399847801,-4500.0,0.00018082,2]
[401907078,1768399847810,-4500.0,0.00018082,2]
[401907079,1768399847819,-1000.0,0.00018167,2]
[401907080,1768399847827,-1000.0,0.00018167,2]
[401907081,1768399847836,-5000.0,0.00018204,2]
[401907082,1768399847846,-5000.0,0.00018204,2]
[401907083,1768399847855,-5000.0,0.00018204,2]
[401907084,1768399847864,-160.35823449,0.00018257,2]
[401907085,1768399847873,-233.51889341,0.00018312,2]
[401907086,1768399847883,-640.24385345,0.00018312,2]
[401907087,1768399847893,-3200.0,0.00018356,2]
[401907088,1768399847902,-4910.415429,0.00018457,7]
[401907089,1768399847911,-433.533294,0.00018469,7]
[401907090,1768399847920,-59400.186644,0.00018481,7]
[401907091,1768399847929,-748.686707,0.00018493,2]
[401907092,1768399847938,-163.33303318,0.00018523,2]
[401907093,1768399847948,-3000.0,0.00018604,2]
[401907094,1768399847958,-600.0,0.0001863,2]
[401907095,1768399847967,-5000.0,0.0001863,2]
[401907096,1768399847976,-5000.0,0.0001863,2]
[401907097,1768399847985,-5000.0,0.0001863,2]
[401907098,1768399847995,-1089.56424793,0.00018643,13]
[401907099,1768399848004,-1185.0,0.00018655,2]
[401907100,1768399848015,-4088.14205975,0.00018752,2]
[401907101,1768399848024,-5500.0,0.00018752,2]
[401907102,1768399848034,-5500.0,0.00018752,2]
[401907103,1768399848043,-372.18871359,0.0001886,2]
[401907104,1768399848053,-663.93287602,0.0001886,2]
[401907105,1768399848062,-5000.0,0.00018863,2]
[401907106,1768399848072,-303.10001603,0.000189,2]
[401907107,1768399848081,-303.10001603,0.000189,2]
[401907108,1768399848090,-168.28,0.00018931,2]
[401907109,1768399848099,-303.10001603,0.00019089,2]
[401907110,1768399848108,-303.10001603,0.00019089,2]
[401907111,1768399848118,-3300.0,0.00019152,2]
[401907112,1768399848127,-1267.8381,0.00019178,2]
[401907113,1768399848138,-1267.8381,0.00019178,2]
[401907114,1768399848147,-2535.6762,0.00019178,2]
[401907115,1768399848157,-1945.86,0.00019178,2]
[401907116,1768399848166,-151.0,0.00019178,2]
[401907117,1768399848175,-666.883218,0.00019178,2]
[401907118,1768399848184,-666.883218,0.00019178,2]
[401907119,1768399848193,-666.883218,0.00019178,2]
[401907120,1768399848202,-666.883218,0.00019178,2]
[401907121,1768399848212,-5500.0,0.00019178,2]
[401907122,1768399848222,-5500.0,0.00019178,2]
[401907123,1768399848231,-5500.0,0.00019178,2]
[401907124,1768399848240,-305.62,0.000192,2]
[401907125,1768399848249,-303.2,0.000192,2]
[401907126,1768399848258,-37313.83,0.000192,2]
[401907127,1768399848271,-167.77,0.000192,2]
[401907128,1768399848281,-5687.02,0.000192,2]
[401907129,1768399848290,-303.10001603,0.00019278,2]
[401907130,1768399848300,-303.10001603,0.00019278,2]
[401907131,1768399848311,-4040.44472477,0.000193,2]
[401907132,1768399848320,-6000.0,0.000193,2]
[401907133,1768399848329,-1144.58879265,0.0001933,2]
[401907134,1768399848339,-307.61092211,0.00019452,2]
[401907135,1768399848349,-303.10001603,0.00019467,2]
[401907136,1768399848358,-303.10001603,0.00019467,2]
[401907137,1768399848367,-1267.8381,0.00019589,3]
[401907138,1768399848377,-1267.8381,0.00019589,3]
[401907139,1768399848386,-303.10001603,0.00019656,2]
[401907140,1768399848395,-303.10001603,0.00019656,2]
[401907141,1768399848405,-1089.56424793,0.00019679,14]
[401907142,1768399848414,-1056.20051056,0.000197,2]
[401907143,1768399848424,-800.0,0.00019726,2]
[401907144,1768399848433,-250.0,0.00019726,2]
[401907145,1768399848443,-6000.0,0.00019726,2]
[401907146,1768399848452,-6000.0,0.00019726,2]
[401907147,1768399848461,-6000.0,0.00019726,2]
[401907148,1768399848471,-250.0,0.00019726,2]
[401907149,1768399848480,-3162.0,0.0001978,2]
[401907150,1768399848490,-454.65002405,0.00019845,4]
[401907151,1768399848499,-454.65002405,0.00019845,4]
[401907152,1768399848508,-6500.0,0.00019848,2]
[401907153,1768399848519,-2000.0,0.0001997,7]
[401907154,1768399848528,-1000.0,0.00019984,2]
[401907155,1768399848537,-1000.0,0.00019984,2]
[401907156,1768399848547,-579.0,0.00019984,2]
[401907157,1768399848557,-500.0,0.0002,2]
[401907158,1768399848567,-500.0,0.0002,2]
[401907159,1768399848576,-500.0,0.0002,2]
[401907160,1768399848585,-9661.0,0.0002,2]
[401907161,1768399848594,-151.55000802,0.0002,2]
[401907162,1768399848604,-300.0,0.0002,2]
[401907163,1768399848613,-454.65002405,0.00020034,4]
[401907164,1768399848622,-454.65002405,0.00020034,4]
[401907165,1768399848631,-1185.0,0.00020039,2]
[401907166,1768399848640,-454.65002405,0.00020223,4]
[401907167,1768399848649,-454.65002405,0.00020223,4]
[401907168,1768399848661,-200.91058964,0.00020274,2]
[401907169,1768399848671,-5446.58201638,0.00020274,2]
[401907170,1768399848681,-6500.0,0.00020274,2]
[401907171,1768399848690,-5902.72600724,0.00020274,2]
[401907172,1768399848700,-350.0,0.00020274,2]
[401907173,1768399848711,-3073.24025849,0.00020396,2]
[401907174,1768399848721,-454.65002405,0.00020412,4]
[401907175,1768399848732,-454.65002405,0.00020412,4]
[401907176,1768399848740,-12705.37423421,0.00020418,2]
[401907177,1768399848750,-5687.02,0.000205,2]
[401907178,1768399848760,-294.66,0.00020519,2]
[401907179,1768399848769,-454.65002402,0.00020601,4]
[401907180,1768399848779,-454.65002405,0.00020601,4]
[401907181,1768399848788,-168.28,0.00020627,2]
[401907182,1768399848973,-37313.83,0.000207,2]
[401907183,1768399848983,-167.77,0.000207,2]
[401907184,1768399848992,-1089.56424793,0.00020715,15]
[401907185,1768399849002,-1000.0,0.00020822,2]
[401907186,1768399849011,-7000.0,0.00020822,2]
[401907187,1768399849021,-450.0,0.00020822,2]
[401907188,1768399849031,-2000.0,0.00020971,7]
[401907189,1768399849041,-3000.0,0.00021,2]
[401907190,1768399849050,-730.42,0.00021,7]
[401907191,1768399849060,-3000.0,0.0002101,2]
[401907192,1768399849070,-3000.0,0.0002102,2]
[401907193,1768399849080,-3000.0,0.0002103,2]
[401907194,1768399849089,-3000.0,0.0002104,2]
[401907195,1768399849099,-3000.0,0.0002105,2]
[401907196,1768399849109,-3000.0,0.0002106,2]
[401907197,1768399849119,-3000.0,0.0002107,2]
[401907198,1768399849128,-3000.0,0.0002108,2]
[401907199,1768399849139,-3000.0,0.0002109,2]
[401907200,1768399849148,-3000.0,0.000211,2]
[401907201,1768399849158,-3000.0,0.0002111,2]
[401907202,1768399849167,-3000.0,0.0002112,2]
[401907203,1768399849176,-3000.0,0.0002113,2]
[401907204,1768399849186,-3000.0,0.0002114,2]
[401907205,1768399849195,-3000.0,0.0002115,2]
[401907206,1768399849207,-3000.0,0.0002116,2]
[401907207,1768399849216,-3000.0,0.0002117,2]
[401907208,1768399849226,-3000.0,0.0002118,2]
[401907209,1768399849237,-3000.0,0.0002119,2]
[401907210,1768399849249,-3000.0,0.000212,2]
[401907211,1768399849258,-3000.0,0.0002121,2]
[401907212,1768399849269,-3000.0,0.0002122,2]
[401907213,1768399849282,-3000.0,0.0002123,2]
[401907214,1768399849292,-3000.0,0.0002124,2]
[401907215,1768399849313,-3000.0,0.0002125,2]
[401907216,1768399849324,-3000.0,0.0002126,2]
[401907217,1768399849334,-3000.0,0.0002127,2]
[401907218,1768399849344,-3000.0,0.0002128,2]
[401907219,1768399849363,-3000.0,0.0002129,2]
[401907220,1768399849379,-3000.0,0.000213,2]
[401907221,1768399849390,-3000.0,0.0002131,2]
[401907222,1768399849399,-3000.0,0.0002132,2]
[401907223,1768399849409,-3000.0,0.0002133,2]
[401907224,1768399849419,-1253.02352037,0.0002133,2]
[401907225,1768399849428,-3000.0,0.0002134,2]
[401907226,1768399849437,-3000.0,0.0002135,2]
[401907227,1768399849447,-3000.0,0.0002136,2]
[401907228,1768399849457,-7500.0,0.0002137,2]
[401907229,1768399849466,-550.0,0.0002137,2]
[401907230,1768399849476,-3000.0,0.0002137,2]
[401907231,1768399849485,-3000.0,0.0002138,2]
[401907232,1768399849494,-3000.0,0.0002139,2]
[401907233,1768399849504,-305.62,0.000214,2]
[401907234,1768399849513,-303.2,0.000214,2]
[401907235,1768399849523,-1185.0,0.00021423,2]
[401907236,1768399849533,-1089.56424793,0.00021752,17]
[401907237,1768399849542,-4427.0,0.00021755,2]
[401907238,1768399849551,-1031.0,0.0002176,2]
[401907239,1768399849561,-1031.0,0.00021765,2]
[401907240,1768399849570,-5687.02,0.000218,2]
[401907241,1768399849579,-1031.0,0.00021813,2]
[401907242,1768399849589,-1031.0,0.00021818,2]
[401907243,1768399849599,-1031.0,0.00021896,2]
[401907244,1768399849608,-748.686707,0.00021918,2]
[401907245,1768399849617,-151.0,0.00021918,2]
[401907246,1768399849627,-151.0,0.00021918,2]
[401907247,1768399849637,-151.0,0.00021918,2]
[401907248,1768399849647,-151.0,0.00021918,2]
[401907249,1768399849656,-228.779396,0.00021918,2]
[401907250,1768399849666,-336.690027,0.00021918,2]
[401907251,1768399849675,-336.690027,0.00021918,2]
[401907252,1768399849685,-151.0,0.00021918,2]
[401907253,1768399849694,-336.690027,0.00021918,2]
[401907254,1768399849703,-336.690027,0.00021918,2]
[401907255,1768399849713,-151.0,0.00021918,2]
[401907256,1768399849722,-181.655666,0.00021918,2]
[401907257,1768399849731,-154.230394,0.00021918,2]
[401907258,1768399849740,-180.50802,0.00021918,2]
[401907259,1768399849750,-151.0,0.00021918,2]
[401907260,1768399849759,-151.0,0.00021918,2]
[401907261,1768399849768,-221.755755,0.00021918,2]
[401907262,1768399849777,-221.755755,0.00021918,2]
[401907263,1768399849787,-221.755755,0.00021918,2]
[401907264,1768399849796,-221.755755,0.00021918,2]
[401907265,1768399849806,-151.0,0.00021918,2]
[401907266,1768399849816,-151.0,0.00021918,2]
[401907267,1768399849826,-294.208262,0.00021918,2]
[401907268,1768399849836,-294.208262,0.00021918,2]
[401907269,1768399849846,-294.208262,0.00021918,2]
[401907270,1768399849855,-294.208262,0.00021918,2]
[401907271,1768399849865,-412.415829,0.00021918,2]
[401907272,1768399849875,-412.415829,0.00021918,2]
[401907273,1768399849886,-412.415829,0.00021918,2]
[401907274,1768399849895,-412.415829,0.00021918,2]
[401907275,1768399849906,-424.279015,0.00021918,2]
[401907276,1768399849916,-263.461157,0.00021918,2]
[401907277,1768399849925,-424.279015,0.00021918,2]
[401907278,1768399849935,-263.461157,0.00021918,2]
[401907279,1768399849944,-424.279015,0.00021918,2]
[401907280,1768399849954,-263.461157,0.00021918,2]
[401907281,1768399849964,-424.279015,0.00021918,2]
[401907282,1768399849973,-263.461157,0.00021918,2]
[401907283,1768399849983,-151.0,0.00021918,2]
[401907284,1768399849992,-235.103788,0.00021918,2]
[401907285,1768399850001,-235.103788,0.00021918,2]
[401907286,1768399850011,-235.103788,0.00021918,2]
[401907287,1768399850021,-1667.099209,0.00021918,2]
[401907288,1768399850030,-235.103788,0.00021918,2]
[401907289,1768399850039,-1667.099209,0.00021918,2]
[401907290,1768399850049,-1667.099209,0.00021918,2]
[401907291,1768399850058,-1667.099209,0.00021918,2]
[401907292,1768399850067,-380.051781,0.00021918,2]
[401907293,1768399850077,-380.051781,0.00021918,2]
[401907294,1768399850086,-151.0,0.00021918,2]
[401907295,1768399850096,-380.051781,0.00021918,2]
[401907296,1768399850105,-380.051781,0.00021918,2]
[401907297,1768399850114,-424.867584,0.00021918,2]
[401907298,1768399850124,-424.867584,0.00021918,2]
[401907299,1768399850136,-424.867584,0.00021918,2]
[401907300,1768399850145,-424.867584,0.00021918,2]
[401907301,1768399850155,-151.0,0.00021918,2]
[401907302,1768399850164,-151.0,0.00021918,2]
[401907303,1768399850174,-151.0,0.00021918,2]
[401907304,1768399850183,-151.0,0.00021918,2]
[401907305,1768399850193,-151.0,0.00021918,2]
[401907306,1768399850202,-879.438014,0.00021918,2]
[401907307,1768399850212,-879.438014,0.00021918,2]
[401907308,1768399850221,-879.438014,0.00021918,2]
[401907309,1768399850230,-879.438014,0.00021918,2]
[401907310,1768399850239,-216.477356,0.00021918,2]
[401907311,1768399850248,-428.566923,0.00021918,2]
[401907312,1768399850257,-216.477356,0.00021918,2]
[401907313,1768399850270,-428.566923,0.00021918,2]
[401907314,1768399850280,-216.477356,0.00021918,2]
[401907315,1768399850290,-428.566923,0.00021918,2]
[401907316,1768399850299,-216.477356,0.00021918,2]
[401907317,1768399850308,-428.566923,0.00021918,2]
[401907318,1768399850318,-151.0,0.00021918,2]
[401907319,1768399850329,-1200.0,0.00021918,2]
[401907320,1768399850339,-8000.0,0.00021918,2]
[401907321,1768399850349,-650.0,0.00021918,2]
[401907322,1768399850359,-2000.0,0.00021973,7]
[401907323,1768399850369,-1000.0,0.00021982,10]
[401907324,1768399850378,-1000.0,0.00021982,10]
[401907325,1768399850388,-1000.0,0.00021982,10]
[401907326,1768399850398,-2469.16,0.00022,7]
[401907327,1768399850407,-1031.0,0.00022066,2]
[401907328,1768399850416,-37313.83,0.000221,2]
[401907329,1768399850426,-167.77,0.000221,7]
[401907330,1768399850435,-180.09725252,0.00022102,2]
[401907331,1768399850444,-1031.0,0.00022111,2]
[401907332,1768399850454,-1031.0,0.00022268,2]
[401907333,1768399850463,-12705.37423421,0.00022409,2]
[401907334,1768399850473,-300.0,0.00022466,2]
[401907335,1768399850483,-200.0,0.00022466,2]
[401907336,1768399850495,-2364.52541442,0.00022466,2]
[401907337,1768399850504,-750.0,0.00022466,2]
[401907338,1768399850515,-1031.0,0.00022693,2]
[401907339,1768399850525,-1031.0,0.00022699,2]
[401907340,1768399850536,-1031.0,0.00022733,2]
[401907341,1768399850547,-1031.0,0.0002275,2]
[401907342,1768399850556,-1031.0,0.00022752,2]
[401907343,1768399850565,-1031.0,0.00022762,2]
[401907344,1768399850575,-1089.56424793,0.00022788,18]
[401907345,1768399850584,-1185.0,0.00022807,2]
[401907346,1768399850594,-2000.0,0.00022974,7]
[401907347,1768399850603,-450.0,0.00023014,2]
[401907348,1768399850614,-1400.0,0.00023014,2]
[401907349,1768399850623,-250.0,0.00023014,2]
[401907350,1768399850637,-850.0,0.00023014,2]
[401907351,1768399850654,-319.55,0.000231,60]
[401907352,1768399850670,-500.0,0.000231,7]
[401907353,1768399850684,-182.95072115,0.0002315,2]
[401907354,1768399850698,-800.0,0.00023173,2]
[401907355,1768399850712,-1031.0,0.00023195,2]
[401907356,1768399850727,-305.62,0.000232,7]
[401907357,1768399850742,-303.2,0.000232,7]
[401907358,1768399850755,-1031.0,0.00023203,2]
[401907359,1768399850770,-500.0,0.00023221,2]
[401907360,1768399850785,-2000.0,0.00023231,2]
[401907361,1768399850797,-2000.0,0.00023253,2]
[401907362,1768399850809,-1000.0,0.00023254,2]
[401907363,1768399850822,-1031.0,0.00023255,2]
[401907364,1768399850836,-800.0,0.0002327,2]
[401907365,1768399850849,-1000.0,0.00023277,2]
[401907366,1768399850860,-2469.16,0.000233,7]
[401907367,1768399850873,-1000.0,0.000233,2]
[401907368,1768399850887,-5687.02,0.000233,14]
[401907369,1768399850900,-2000.0,0.00023328,2]
[401907370,1768399850913,-1361.45824809,0.0002333,2]
[401907371,1768399850927,-1000.0,0.00023336,2]
[401907372,1768399850942,-1000.0,0.00023347,2]
[401907373,1768399850956,-800.0,0.00023384,2]
[401907374,1768399850968,-2000.0,0.00023411,2]
[401907375,1768399850980,-800.0,0.00023437,2]
[401907376,1768399850991,-500.0,0.00023444,2]
[401907377,1768399851006,-1031.0,0.00023493,2]
[401907378,1768399851020,-600.0,0.00023562,2]
[401907379,1768399851030,-210.92385342,0.00023562,2]
[401907380,1768399851042,-950.0,0.00023562,2]
[401907381,1768399851056,-1031.0,0.00023569,2]
[401907382,1768399851070,-1031.0,0.00023573,2]
[401907383,1768399851082,-800.0,0.00023575,2]
[401907384,1768399851094,-2000.0,0.0002358,2]
[401907385,1768399851106,-1000.0,0.00023592,2]
[401907386,1768399851117,-216.477356,0.00023597,2]
[401907387,1768399851129,-428.566923,0.00023597,2]
[401907388,1768399851141,-216.477356,0.00023597,2]
[401907389,1768399851153,-428.566923,0.00023597,2]
[401907390,1768399851164,-216.477356,0.00023597,2]
[401907391,1768399851176,-428.566923,0.00023597,2]
[401907392,1768399851188,-216.477356,0.00023597,2]
[401907393,1768399851199,-428.566923,0.00023597,2]
[401907394,1768399851210,-163.521598,0.00023597,2]
[401907395,1768399851221,-666.883218,0.00023597,2]
[401907396,1768399851231,-666.883218,0.00023597,2]
[401907397,1768399851243,-666.883218,0.00023597,2]
[401907398,1768399851254,-666.883218,0.00023597,2]
[401907399,1768399851265,-151.0,0.00023597,2]
[401907400,1768399851277,-894.119727,0.00023597,2]
[401907401,1768399851287,-894.119727,0.00023597,2]
[401907402,1768399851300,-894.119727,0.00023597,2]
[401907403,1768399851312,-894.119727,0.00023597,2]
[401907404,1768399851324,-37313.83,0.000236,2]
[401907405,1768399851335,-167.77,0.000236,7]
[401907406,1768399851346,-1000.0,0.00023613,2]
[401907407,1768399851357,-500.0,0.00023613,2]
[401907408,1768399851368,-1000.0,0.00023615,2]
[401907409,1768399851380,-1031.0,0.00023705,2]
[401907410,1768399851392,-1000.0,0.00023713,2]
[401907411,1768399851404,-1031.0,0.00023724,2]
[401907412,1768399851415,-800.0,0.00023734,2]
[401907413,1768399851427,-1000.0,0.00023737,2]
[401907414,1768399851438,-2000.0,0.00023749,2]
[401907415,1768399851453,-1031.0,0.00023753,2]
[401907416,1768399851465,-293.85068442,0.00023764,2]
[401907417,1768399851476,-1000.0,0.00023805,2]
[401907418,1768399851488,-2000.0,0.00023824,2]
[401907419,1768399851499,-1089.56424793,0.00023825,20]
[401907420,1768399851510,-800.0,0.00023844,2]
[401907421,1768399851522,-1031.0,0.00023857,2]
[401907422,1768399851533,-2000.0,0.0002386,2]
[401907423,1768399851545,-1031.0,0.00023866,2]
[401907424,1768399851558,-500.0,0.00023882,2]
[401907425,1768399851570,-1000.0,0.00023891,2]
[401907426,1768399851582,-2000.0,0.00023908,2]
[401907427,1768399851594,-6198.0,0.00023926,2]
[401907428,1768399851606,-1000.0,0.00023949,2]
[401907429,1768399851617,-800.0,0.00023962,2]
[401907430,1768399851629,-2000.0,0.00023972,2]
[401907431,1768399851641,-2000.0,0.00023976,7]
[401907432,1768399851653,-500.0,0.0002399,2]
[401907433,1768399851664,-800.0,0.00024002,2]
[401907434,1768399851675,-1000.0,0.00024004,2]
[401907435,1768399851687,-800.0,0.00024025,2]
[401907436,1768399851699,-500.0,0.00024044,2]
[401907437,1768399851711,-800.0,0.00024044,2]
[401907438,1768399851722,-500.0,0.00024061,2]
[401907439,1768399851733,-1000.0,0.00024061,2]
[401907440,1768399851745,-2946.249257,0.00024075,30]
[401907441,1768399851757,-2000.0,0.00024083,2]
[401907442,1768399851769,-260.119976,0.0002409,30]
[401907443,1768399851780,-1000.0,0.00024094,2]
[401907444,1768399851792,-35640.111986,0.00024105,30]
[401907445,1768399851804,-750.0,0.0002411,2]
[401907446,1768399851816,-1601.4141805,0.0002411,2]
[401907447,1768399851827,-1050.0,0.0002411,2]
[401907448,1768399851839,-800.0,0.00024126,2]
[401907449,1768399851851,-522.88356834,0.0002415,2]
[401907450,1768399851863,-1000.0,0.0002418,10]
[401907451,1768399851875,-1000.0,0.0002418,10]
[401907452,1768399851889,-1000.0,0.0002418,10]
[401907453,1768399851901,-715.0,0.0002418,10]
[401907454,1768399851914,-500.0,0.00024186,2]
[401907455,1768399851926,-1185.0,0.00024191,2]
[401907456,1768399851937,-791.34915639,0.0002424,2]
[401907457,1768399851949,-800.0,0.00024242,2]
[401907458,1768399851961,-2000.0,0.00024283,2]
[401907459,1768399851972,-169.388304,0.00024296,2]
[401907460,1768399851984,-151.0,0.00024296,2]
[401907461,1768399851997,-222.949825,0.00024296,2]
[401907462,1768399852009,-151.0,0.00024296,2]
[401907463,1768399852021,-294.208262,0.00024296,2]
[401907464,1768399852032,-294.208262,0.00024296,2]
[401907465,1768399852043,-294.208262,0.00024296,2]
[401907466,1768399852055,-294.208262,0.00024296,2]
[401907467,1768399852067,-412.415829,0.00024296,2]
[401907468,1768399852080,-412.415829,0.00024296,2]
[401907469,1768399852092,-412.415829,0.00024296,2]
[401907470,1768399852104,-412.415829,0.00024296,2]
[401907471,1768399852116,-424.279015,0.00024296,2]
[401907472,1768399852127,-263.461157,0.00024296,2]
[401907473,1768399852142,-424.279015,0.00024296,2]
[401907474,1768399852154,-263.461157,0.00024296,2]
[401907475,1768399852165,-424.279015,0.00024296,2]
[401907476,1768399852177,-263.461157,0.00024296,2]
[401907477,1768399852188,-424.279015,0.00024296,2]
[401907478,1768399852199,-263.461157,0.00024296,2]
[401907479,1768399852211,-2469.16,0.000243,7]
[401907480,1768399852223,-1082.98429516,0.00024316,2]
[401907481,1768399852234,-800.0,0.00024317,2]
[401907482,1768399852245,-800.0,0.00024338,2]
[401907483,1768399852257,-2000.0,0.00024369,2]
[401907484,1768399852270,-2000.0,0.00024374,2]
[401907485,1768399852283,-1000.0,0.00024375,2]
[401907486,1768399852294,-800.0,0.00024376,2]
[401907487,1768399852305,-1000.0,0.00024381,2]
[401907488,1768399852317,-500.0,0.00024383,2]
[401907489,1768399852329,-800.0,0.00024392,2]
[401907490,1768399852342,-12705.37423421,0.000244,2]
[401907491,1768399852353,-2000.0,0.00024408,2]
[401907492,1768399852366,-500.0,0.00024425,2]
[401907493,1768399852377,-500.0,0.00024444,2]
[401907494,1768399852388,-1000.0,0.00024451,2]
[401907495,1768399852400,-1000.0,0.00024453,2]
[401907496,1768399852411,-2000.0,0.00024455,2]
[401907497,1768399852424,-500.0,0.00024463,2]
[401907498,1768399852435,-500.0,0.00024467,2]
[401907499,1768399852447,-2000.0,0.00024481,2]
[401907500,1768399852458,-800.0,0.00024495,2]
[401907501,1768399852470,-1041.66666667,0.000245,7]
[401907502,1768399852481,-5687.02,0.000245,14]
[401907503,1768399852492,-1000.0,0.00024504,2]
[401907504,1768399852504,-2000.0,0.00024533,2]
[401907505,1768399852516,-2000.0,0.00024558,2]
[401907506,1768399852527,-500.0,0.00024559,2]
[401907507,1768399852539,-1000.0,0.00024601,2]
[401907508,1768399852550,-335.26879672,0.00024603,13]
[401907509,1768399852562,-800.0,0.00024622,2]
[401907510,1768399852573,-499.3,0.00024642,2]
[401907511,1768399852584,-900.0,0.00024658,2]
[401907512,1768399852596,-1150.0,0.00024658,2]
[401907513,1768399852608,-2000.0,0.00024658,2]
[401907514,1768399852620,-2000.0,0.00024665,2]
[401907515,1768399852632,-1000.0,0.00024674,2]
[401907516,1768399852644,-178.026662,0.00024677,7]
[401907517,1768399852654,-235.103788,0.00024677,7]
[401907518,1768399852663,-235.103788,0.00024677,7]
[401907519,1768399852954,-235.103788,0.00024677,7]
[401907520,1768399852968,-235.103788,0.00024677,7]
[401907521,1768399852977,-1667.099209,0.00024677,7]
[401907522,1768399852988,-1667.099209,0.00024677,7]
[401907523,1768399852997,-1667.099209,0.00024677,7]
[401907524,1768399853006,-1667.099209,0.00024677,7]
[401907525,1768399853015,-151.0,0.00024677,7]
[401907526,1768399853024,-1000.0,0.00024696,2]
[401907527,1768399853033,-305.62,0.000247,7]
[401907528,1768399853042,-303.2,0.000247,7]
[401907529,1768399853051,-190.0,0.00024711,2]
[401907530,1768399853061,-500.0,0.00024729,2]
[401907531,1768399853071,-800.0,0.00024729,2]
[401907532,1768399853080,-800.0,0.00024756,2]
[401907533,1768399853089,-800.0,0.00024761,2]
[401907534,1768399853099,-2000.0,0.00024776,2]
[401907535,1768399853108,-879.438014,0.00024777,7]
[401907536,1768399853117,-879.438014,0.00024777,7]
[401907537,1768399853126,-879.438014,0.00024777,7]
[401907538,1768399853135,-879.438014,0.00024777,7]
[401907539,1768399853146,-151.0,0.00024777,7]
[401907540,1768399853156,-151.0,0.00024777,7]
[401907541,1768399853167,-171.876779,0.00024777,7]
[401907542,1768399853177,-151.0,0.00024777,7]
[401907543,1768399853186,-151.0,0.00024777,7]